bitfinex-derivatives/quotes_ETHF0:USTF0_20251009
["timestamp","ask_amount","ask_price","bid_price","bid_amount"]
[1759999347864,0.41455,4341.1,4341.0,2.958]
[1759999348168,0.233,4341.7,4341.0,2.958]
[1759999348375,0.41742226,4341.7,4341.6,2.1226]
[1759999348870,0.41455,4341.1,4341.0,1.05554898]
[1759999349069,0.41455,4341.1,4341.0,3.17814898]
[1759999350380,1.03918226,4341.7,4341.0,3.17814898]
[1759999350671,0.41455,4341.2,4341.1,2.1226]
[1759999353277,0.41465,4340.1,4339.9,0.64767]
[1759999353581,0.41465,4340.1,4339.9,0.233]
[1759999353774,1.03654,4340.5,4339.5,1.30101]
[1759999353971,1.03654,4340.5,4339.5,1.1193]
[1759999354278,0.41467,4339.9,4339.7,0.41468]
[1759999354470,0.41469,4339.7,4339.5,1.12149191]
[1759999355169,0.41469,4339.7,4339.6,2.1226]
[1759999355974,3.4753486,4339.7,4339.6,2.1226]
[1759999357379,3.0606586,4339.7,4339.6,2.1226]
[1759999357776,0.4147,4339.6,4339.5,0.88849191]
[1759999358079,0.4147,4339.6,4339.5,3.01109191]
[1759999358779,0.41468,4339.8,4339.6,2.5373]
[1759999359475,0.932,4341.0,4340.0,0.8863]
[1759999359667,1.03649,4340.7,4340.1,2.1226]
[1759999359869,0.4146,4340.6,4340.5,0.8863]
[1759999360274,0.41464,4340.2,4340.1,0.233]
[1759999360476,0.41464,4340.2,4340.0,2.1226]
[1759999360678,0.41467,4339.9,4339.8,2.3556]
[1759999360875,0.41467,4339.9,4339.8,2.1226]
[1759999361876,0.4147,4339.6,4339.5,2.12479191]
[1759999362480,3.418174,4339.6,4339.5,2.12479191]
[1759999362883,3.418174,4339.6,4339.5,3.01109191]
[1759999363378,3.418174,4339.6,4339.5,2.12479191]
[1759999363981,3.418174,4339.6,4339.5,2.98319191]
[1759999364774,3.418174,4339.6,4339.5,2.12479191]
[1759999364980,3.418174,4339.6,4339.5,2.98319191]
[1759999365280,3.651174,4339.6,4339.5,2.98319191]
[1759999365479,4.547874,4339.6,4339.5,0.00219191]
[1759999365676,0.41479,4338.6,4338.5,0.8863]
[1759999366073,3.45583745,4338.6,4338.5,0.8863]
[1759999366273,0.41484,4338.1,4338.0,2.8789]
[1759999366474,0.41479,4338.6,4338.5,0.8584]
[1759999366678,0.41705177,4338.6,4338.5,2.88129287]
[1759999366882,0.00226177,4338.6,4338.5,2.88129287]
[1759999368373,0.00226177,4338.6,4338.5,7.88129287]
[1759999368573,0.41474,4339.2,4339.1,2.0205]
[1759999369479,0.41734028,4339.2,4339.1,2.0205]
[1759999369674,0.00260028,4339.2,4339.1,2.0205]
[1759999373679,0.00260028,4339.2,4339.1,2.43524]
[1759999373882,0.00260028,4339.2,4339.1,2.0205]
[1759999374484,1.93322,4340.6,4339.5,0.8584]
[1759999374683,0.8967,4340.6,4339.6,2.2315]
[1759999374883,3.20239875,4340.5,4340.1,2.0205]
[1759999375084,0.149,4340.4,4340.0,0.8584]
[1759999375285,0.41463,4340.3,4340.0,0.8584]
[1759999375481,0.41646914,4340.3,4340.0,0.8584]
[1759999375786,0.41464,4340.2,4340.1,2.0205]
[1759999376487,0.41465,4340.1,4340.0,0.8584]
[1759999376681,0.41465,4340.1,4340.0,2.8789]
[1759999376879,0.41465,4340.1,4340.0,2.0205]
[1759999377089,3.04364382,4340.2,4340.0,0.8584]
[1759999377289,3.04364382,4340.2,4340.1,2.0205]
[1759999377487,0.00183914,4340.3,4340.2,2.43514]
[1759999377991,0.00183914,4340.3,4340.2,2.0205]
[1759999378484,0.00183914,4340.3,4340.2,2.43514]
[1759999380389,0.00183914,4340.3,4340.2,2.0205]
[1759999380688,0.41464,4340.2,4340.0,0.233]
[1759999380889,0.41466,4340.0,4339.7,2.0615]
[1759999381091,3.02350159,4340.1,4340.0,0.811]
[1759999381385,0.41474,4339.2,4339.0,2.9199]
[1759999381591,0.41474,4339.2,4339.1,2.0615]
[1759999382090,2.97732,4339.2,4339.1,2.0615]
[1759999382393,0.41471,4339.5,4339.1,2.0615]
[1759999382592,0.233,4339.7,4339.1,2.0615]
[1759999382788,0.4147,4339.6,4339.5,0.811]
[1759999382984,0.4147,4339.6,4339.5,2.0615]
[1759999383185,3.00843201,4339.6,4339.0,2.9199]
[1759999383593,0.00183914,4340.3,4339.5,0.811]
[1759999383789,0.1,4340.2,4339.6,2.0615]
[1759999384096,3.47146438,4339.8,4339.6,2.0615]
[1759999384285,3.15678438,4340.2,4339.5,0.811]
[1759999384486,2.93999769,4339.7,4339.6,0.4147]
[1759999384686,2.93999769,4339.7,4339.5,0.811]
[1759999384687,0.00183914,4340.3,4340.2,0.41464]
[1759999384891,0.00183914,4340.3,4340.2,2.0615]
[1759999385687,0.00183914,4340.3,4340.2,2.2945]
[1759999388299,0.00183914,4340.3,4340.2,2.70914]
[1759999388495,0.00183914,4340.3,4340.2,2.2945]
[1759999388691,0.00183914,4340.3,4340.2,2.0615]
[1759999390497,0.41464,4340.2,4340.0,3.1055]
[1759999390791,0.41464,4340.2,4340.0,2.8725]
[1759999391191,3.06423853,4340.1,4340.0,2.8725]
[1759999392094,8.06423853,4340.1,4339.5,0.811]
[1759999392284,3.06423853,4340.1,4339.5,0.811]
[1759999392487,4.04754953,4340.2,4339.6,2.0615]
[1759999392685,0.41468,4339.8,4339.6,2.0615]
[1759999392995,0.233,4340.2,4339.3,0.233]
[1759999392996,0.41472,4339.4,4339.3,2.2945]
[1759999393195,0.41472,4339.4,4339.3,2.0615]
[1759999393495,3.47922981,4339.4,4339.3,2.0615]
[1759999393693,0.41479,4338.6,4338.5,2.92229287]
[1759999395198,0.41479,4338.7,4338.6,2.0615]
[1759999396497,0.41479,4338.7,4338.5,0.86079287]
[1759999396498,0.8625,4338.6,4338.5,0.00239287]
[1759999396699,5.8625,4338.6,4338.5,0.00239287]
[1759999397001,8.03040282,4338.6,4338.5,0.00239287]
[1759999397491,3.03040282,4338.6,4338.5,2.87489287]
[1759999397688,0.1843,4338.8,4338.6,2.47629]
[1759999398103,0.1843,4338.8,4338.6,2.0615]
[1759999398902,0.1843,4338.8,4338.7,2.47628]
[1759999399198,0.00183914,4340.3,4338.7,0.233]
[1759999399394,0.00183914,4340.3,4340.0,0.811]
[1759999399395,0.41465,4340.2,4340.0,0.811]
[1759999399590,2.96478437,4340.1,4340.0,2.0615]
[1759999399794,3.37943437,4340.2,4339.5,2.8725]
[1759999399795,0.4147,4339.6,4339.5,2.8725]
[1759999400296,0.00183914,4340.3,4339.7,0.41468]
[1759999400600,2.95585664,4340.1,4339.5,0.811]
[1759999400900,0.233,4340.1,4339.5,0.811]
[1759999401090,0.00183914,4340.3,4340.1,2.0615]
[1759999401290,0.41465,4340.1,4340.0,2.8725]
[1759999401692,0.00183914,4340.3,4340.0,0.811]
[1759999401892,0.00183914,4340.3,4340.1,2.0615]
[1759999402294,0.41464,4340.2,4340.1,2.0615]
[1759999402692,3.81974655,4340.2,4339.6,0.233]
[1759999402896,0.4147,4339.6,4339.5,2.8725]
[1759999404095,0.41473,4339.2,4339.1,2.0615]
[1759999404693,3.02452851,4339.6,4339.5,0.811]
[1759999404996,0.41469,4339.7,4339.5,2.8725]
[1759999405304,0.41469,4339.7,4339.6,2.0615]
[1759999405799,3.46820438,4339.7,4339.6,2.0615]
[1759999408998,3.05351438,4339.7,4339.6,2.0615]
[1759999409405,0.41467,4339.9,4339.6,2.0615]
[1759999409702,0.23483914,4340.3,4339.5,0.811]
[1759999409703,3.39647584,4339.8,4339.5,0.811]
[1759999409908,0.41469,4339.7,4339.6,1.9544]
[1759999413003,0.41465,4340.1,4340.0,0.8146]
[1759999413210,0.41465,4340.1,4340.0,2.769]
[1759999413410,3.3682282,4340.1,4340.0,2.769]
[1759999413611,0.41465,4340.1,4340.0,2.769]
[1759999413807,0.00183914,4340.3,4340.1,1.9544]
[1759999414021,0.41646914,4340.3,4340.1,1.9544]
[1759999414220,0.00183914,4340.3,4340.1,1.9544]
[1759999414414,0.00183914,4340.3,4340.1,2.36905]
[1759999414916,0.00183914,4340.3,4340.2,0.233]
[1759999415122,0.00183914,4340.3,4340.2,2.1874]
[1759999417919,0.00183914,4340.3,4340.2,1.9544]
[1759999418114,0.00183914,4340.3,4340.2,2.1874]
[1759999418726,0.00183914,4340.3,4340.2,1.9544]
[1759999418922,0.41646914,4340.3,4340.2,1.9544]
[1759999419113,0.41467,4339.9,4339.8,1.9544]
[1759999420323,0.00183914,4340.3,4339.8,1.9544]
[1759999420520,0.41464,4340.2,4340.0,0.8146]
[1759999420720,3.44098291,4340.2,4340.1,1.9544]
[1759999421614,3.02634291,4340.2,4340.1,1.9544]
[1759999421927,0.41647914,4340.3,4340.1,1.9544]
[1759999423727,0.00183914,4340.3,4340.1,2.36905]
[1759999425019,0.00183914,4340.3,4340.2,0.41464]
[1759999425323,0.00183914,4340.3,4340.2,2.59974]
[1759999427427,0.41451,4341.6,4341.2,2.36764]
[1759999427731,0.41446,4342.1,4342.0,0.8138]
[1759999428024,0.41446,4342.1,4342.0,2.7669]
[1759999428321,3.43845744,4342.1,4342.0,2.76919905]
[1759999428523,0.00228716,4342.1,4342.0,2.76919905]
[1759999430823,0.00228716,4342.1,4342.0,3.00119905]
[1759999431818,1.03585,4343.4,4343.0,0.8138]
[1759999432031,0.41436,4343.1,4343.0,2.7669]
[1759999432229,3.40011871,4343.1,4343.0,2.7669]
[1759999432528,1.16786,4343.1,4343.0,1.9531]
[1759999432828,0.41446,4342.1,4342.0,2.76919905]
[1759999433024,0.41446,4342.1,4342.0,1.95539905]
[1759999433227,3.42256111,4342.1,4342.0,1.95539905]
[1759999433926,3.42256111,4342.1,4342.0,2.76919905]
[1759999434126,1.03596,4342.9,4342.0,2.76919905]
[1759999434331,0.41444,4342.3,4342.1,1.9531]
[1759999434719,2.99882469,4342.8,4342.1,1.9531]
[1759999434922,0.41441,4342.6,4342.5,2.7669]
[1759999435123,0.4144,4342.7,4342.6,1.9531]
[1759999436629,0.41439,4342.9,4342.6,1.9531]
[1759999436931,0.41439,4342.9,4342.5,0.8138]
[1759999436932,0.41441,4342.6,4342.5,2.7669]
[1759999441431,0.41441,4342.6,4342.5,4.0915]
[1759999441432,1.56951,4342.6,4342.5,4.0915]
[1759999441627,0.41446,4342.1,4342.0,0.81609905]
[1759999441822,3.15026,4342.1,4342.0,0.81609905]
[1759999442329,3.15026,4342.1,4342.0,2.82429905]
[1759999442529,1.03595,4343.0,4342.1,2.0082]
[1759999442734,0.41441,4342.6,4342.5,5.4116]
[1759999444234,1.80681,4342.6,4342.5,5.4116]
[1759999444533,3.15026,4342.1,4342.0,2.82429905]
[1759999444726,3.15026,4342.1,4342.0,4.38089905]
[1759999445731,3.15026,4342.1,4342.0,5.66009905]
[1759999446037,1.80686,4342.1,4342.0,5.66009905]
[1759999446239,0.41446,4342.1,4342.0,3.05629905]
[1759999446537,0.41445,4342.2,4342.1,2.0082]
[1759999448034,1.3015,4342.1,4342.0,0.23429905]
[1759999448332,0.41453,4341.3,4341.2,2.0082]
[1759999449335,0.41453,4341.3,4341.2,0.00191904]
[1759999449336,4.72145932,4341.3,4341.2,0.00191904]
[1759999449538,3.41995932,4341.3,4341.2,2.01011904]
[1759999450241,0.4146,4340.6,4340.5,0.7996]
[1759999450438,0.4146,4340.6,4340.5,2.8078]
[1759999451436,0.4146,4340.6,4340.5,2.80997882]
[1759999453134,1.5335,4341.8,4341.1,2.0082]
[1759999453335,0.41454,4341.3,4341.1,2.0082]
[1759999453538,0.41455,4341.2,4341.1,2.0082]
[1759999453935,4.69095265,4341.2,4341.1,2.0082]
[1759999454244,0.4146,4340.6,4340.5,0.80177882]
[1759999454841,0.4146,4340.6,4340.5,2.80997882]
[1759999456140,0.41456,4341.1,4341.0,0.7996]
[1759999456336,0.41454,4341.3,4341.0,2.8078]
[1759999456535,0.41454,4341.3,4341.1,2.0082]
[1759999456536,0.41455,4341.2,4341.1,2.0082]
[1759999457140,1.03624,4341.8,4341.1,2.0082]
[1759999457343,0.41451,4341.6,4341.5,0.7996]
[1759999457644,3.69014223,4341.6,4341.5,2.8078]
[1759999458846,3.45814223,4341.6,4341.5,2.8078]
[1759999459936,3.0392662,4341.6,4341.5,2.8078]
[1759999460137,0.00288954,4343.1,4343.0,2.8078]
[1759999460440,0.00288954,4343.1,4343.0,3.0398]
[1759999460633,0.41425,4344.4,4343.1,1.03591]
[1759999460833,1.3015,4345.1,4343.8,2.4225]
[1759999461040,0.4742,4344.8,4344.5,0.7996]
[1759999461237,0.4142,4344.8,4344.6,2.0082]
[1759999461538,2.92808022,4344.7,4344.6,2.0082]
[1759999461739,2.93062777,4344.7,4344.6,2.01036002]
[1759999462044,0.00254755,4344.7,4344.6,2.01036002]
[1759999462244,2.93862352,4344.7,4344.6,2.01036002]
[1759999462544,0.00254755,4344.7,4344.6,2.01036002]
[1759999464339,0.00254755,4344.7,4344.6,2.24236002]
[1759999466244,0.41675755,4344.7,4344.6,2.01036002]
[1759999466440,1.9306,4344.1,4342.5,0.7996]
[1759999466641,0.41432,4343.6,4343.2,0.41435]
[1759999466944,0.41436,4343.2,4342.9,0.152]
[1759999467647,3.02631824,4343.5,4343.0,0.80240198]
[1759999468146,0.41434,4343.4,4343.0,0.80240198]
[1759999468346,2.96994252,4343.6,4343.1,0.41436]
[1759999468645,2.98752588,4343.3,4343.2,1.9842]
[1759999468834,0.41433,4343.5,4343.3,1.9842]
[1759999469037,2.98752588,4343.7,4343.3,1.9842]
[1759999469038,1.9306,4343.9,4343.3,1.9842]
[1759999469239,0.41432,4343.6,4343.5,2.8165]
[1759999469443,3.40184588,4343.6,4343.5,2.8165]
[1759999469644,0.41432,4343.6,4343.5,2.8165]
[1759999469948,3.45923068,4343.6,4343.5,2.8165]
[1759999470144,3.04491068,4343.6,4343.5,2.8165]
[1759999470342,0.41427,4344.1,4343.6,1.9842]
[1759999470551,1.92384755,4344.7,4343.8,1.9842]
[1759999470847,2.93720035,4344.2,4344.1,1.9842]
[1759999471046,1.9213,4344.1,4343.5,0.8323]
[1759999471243,0.41433,4343.4,4343.3,1.9842]
[1759999471848,1.9213,4343.8,4343.0,0.80240198]
[1759999471849,0.232,4343.6,4343.2,0.41435]
[1759999472047,0.232,4343.9,4343.6,1.9842]
[1759999472245,4.90572005,4343.7,4343.0,1.03440198]
[1759999472548,0.41435,4343.2,4343.1,1.9842]
[1759999472942,3.35198715,4343.2,4343.1,1.9842]
[1759999474139,1.9213,4343.1,4343.0,0.00280198]
[1759999474348,2.1533,4343.1,4343.0,0.00280198]
[1759999474544,5.13411181,4343.1,4343.0,0.00280198]
[1759999475146,4.90211181,4343.1,4343.0,0.00280198]
[1759999475346,5.13411181,4343.1,4343.0,0.00280198]
[1759999476447,3.21281181,4343.1,4343.0,1.98700198]
[1759999476850,5.13411181,4343.1,4343.0,0.00280198]
[1759999477447,0.41449,4341.8,4341.7,1.9842]
[1759999477750,0.41454,4341.2,4341.1,1.9842]
[1759999478449,3.38313675,4341.2,4341.1,1.98629078]
[1759999479855,0.41445,4342.2,4341.4,0.41452]
[1759999480051,1.03599,4342.8,4341.5,0.8323]
[1759999480260,2.99895042,4342.1,4342.0,2.8165]
[1759999480557,0.60445,4342.2,4342.1,1.9842]
[1759999480854,3.39294832,4342.2,4342.1,1.9842]
[1759999481059,3.6272644,4342.2,4342.1,1.9842]
[1759999481558,2.9808144,4342.2,4342.1,1.9842]
[1759999481861,0.00231608,4342.2,4342.1,1.9842]
[1759999482058,0.41439,4342.9,4342.5,0.8323]
[1759999482352,1.9213,4343.8,4343.1,1.9842]
[1759999482353,3.00797523,4343.2,4343.1,1.9842]
[1759999482752,0.41436,4343.1,4343.0,0.8323]
[1759999483065,0.41612581,4343.1,4343.0,2.8165]
[1759999483953,0.41441,4342.6,4342.5,2.1995]
[1759999484348,0.41441,4342.6,4342.5,1.9675]
[1759999485360,0.41441,4342.6,4342.5,2.7329]
[1759999485554,0.00176581,4343.1,4342.6,1.9675]
[1759999485760,0.00176581,4343.1,4343.0,1.9675]
[1759999485959,0.23376581,4343.1,4343.0,1.9675]
[1759999486262,3.21618517,4343.1,4343.0,1.9675]
[1759999486652,0.00176581,4343.1,4343.0,2.7329]
[1759999486849,0.1841,4344.1,4343.0,2.7329]
[1759999486850,0.41429,4343.9,4343.5,0.7654]
[1759999487053,0.1841,4344.1,4344.0,0.7654]
[1759999487253,0.4161,4344.1,4344.0,2.7329]
[1759999487454,3.02630207,4344.1,4344.0,2.7329]
[1759999487659,0.41426,4344.2,4344.0,2.7329]
[1759999487860,0.41614182,4344.2,4344.1,1.9675]
[1759999488059,1.03604,4342.6,4341.5,0.7654]
[1759999488264,1.8851,4342.4,4341.5,0.9854]
[1759999488558,0.41454,4341.3,4341.1,0.00209078]
[1759999488953,2.29964,4341.3,4341.1,0.00209078]
[1759999489958,2.29964,4341.3,4341.1,1.96959078]
[1759999491464,2.29964,4341.3,4341.1,0.00209078]
[1759999491661,2.29964,4341.3,4341.2,1.9675]
[1759999492060,0.41454,4341.3,4341.2,1.9675]
[1759999492468,0.232,4341.7,4341.2,1.9675]
[1759999492766,0.41454,4341.2,4341.1,1.96959078]
[1759999496269,0.41454,4341.3,4341.1,2.20159078]
[1759999496460,0.41454,4341.3,4341.2,1.9675]
[1759999496665,0.41454,4341.3,4341.2,2.1995]
[1759999497168,2.29964,4341.3,4341.2,1.9675]
[1759999497763,1.8851,4341.2,4341.1,2.20159078]
[1759999499164,0.41454,4341.3,4341.1,0.23409078]
[1759999499366,0.41454,4341.3,4341.2,2.0369]
[1759999499672,2.35944,4341.3,4341.2,2.0369]
[1759999500170,0.41454,4341.3,4341.2,2.0369]
[1759999500375,2.35944,4341.3,4341.2,2.2689]
[1759999500774,0.1842,4341.8,4341.5,0.797]
[1759999501076,0.41454,4341.3,4341.1,0.00209078]
[1759999501276,2.9857497,4341.7,4341.1,0.00209078]
[1759999501576,0.4145,4341.7,4341.6,2.0369]
[1759999501775,0.4145,4341.7,4341.6,2.2689]
[1759999501971,0.41453,4341.3,4341.1,0.00209078]
[1759999502178,2.35943,4341.3,4341.2,2.2689]
[1759999502378,1.9449,4341.8,4341.2,2.2689]
[1759999502578,0.41452,4341.4,4341.3,2.45143]
[1759999502977,0.41452,4341.4,4341.3,2.0369]
[1759999503179,3.025312,4341.7,4341.3,2.0369]
[1759999503379,0.4145,4341.8,4341.7,2.4514]
[1759999503574,0.4145,4341.8,4341.7,2.2689]
[1759999504080,0.41444,4342.3,4342.2,2.45134]
[1759999504277,1.03597,4342.9,4342.2,2.68335]
[1759999504471,0.41441,4342.7,4342.6,2.0369]
[1759999504674,0.41441,4342.7,4342.6,2.2689]
[1759999504884,0.41444,4342.3,4342.2,42.8369]
[1759999505280,0.41442,4342.5,4342.3,2.45134]
[1759999505579,0.4144,4342.7,4342.6,2.0369]
[1759999505781,0.4144,4342.7,4342.6,2.2689]
[1759999506284,0.41444,4342.3,4342.2,2.0369]
[1759999506473,0.1842,4342.8,4342.5,0.797]
[1759999506678,0.59859,4342.8,4342.7,2.0369]
[1759999506982,0.1842,4342.8,4342.7,2.0369]
[1759999507375,2.1291,4342.8,4342.7,2.0369]
[1759999507678,0.41443,4342.4,4342.3,2.0369]
[1759999507887,0.41443,4342.4,4342.3,2.2689]
[1759999508275,1.9449,4342.7,4342.3,0.64644]
[1759999508579,0.1842,4342.8,4342.7,2.4513]
[1759999508773,0.1842,4342.8,4342.7,2.6833]
[1759999508979,0.41439,4342.9,4342.7,2.6833]
[1759999509183,0.41439,4342.9,4342.8,2.0369]
[1759999509783,0.41437,4343.1,4343.0,0.797]
[1759999509978,0.41437,4343.1,4343.0,3.0659]
[1759999512178,2.98069,4343.7,4343.1,2.45126]
[1759999512378,0.41434,4343.3,4343.2,2.2689]
[1759999513080,0.1841,4343.7,4343.3,2.0369]
[1759999513384,0.41431,4343.6,4343.5,2.8339]
[1759999513584,0.1841,4343.7,4343.6,2.45121]
[1759999513786,0.1841,4343.7,4343.6,5.09231]
[1759999514682,1.03579,4343.6,4343.2,2.0369]
[1759999514991,2.35924,4343.3,4343.2,2.0369]
[1759999515284,0.41434,4343.3,4343.2,2.2689]
[1759999515881,0.1841,4343.7,4343.3,2.0369]
[1759999516079,0.41431,4343.6,4343.5,2.0369]
[1759999516281,3.36721796,4343.6,4343.5,2.2689]
[1759999516686,3.36721796,4343.6,4343.5,3.0659]
[1759999516886,0.41431,4343.7,4343.6,0.41431]
[1759999517086,0.41431,4343.7,4343.6,2.45121]
[1759999517589,2.98055,4344.3,4343.6,2.45121]
[1759999517590,1.9449,4344.3,4343.7,2.0369]
[1759999517791,0.41429,4343.9,4343.8,2.6832]
[1759999518692,0.41429,4343.9,4343.8,2.2689]
[1759999518986,2.35921,4343.6,4343.5,2.0369]
[1759999519182,0.41431,4343.6,4343.5,2.2689]
[1759999519385,0.41431,4343.6,4343.5,3.0659]
[1759999519786,0.41431,4343.6,4343.5,3.48022]
[1759999519985,0.4143,4343.8,4343.7,2.4512]
[1759999520192,0.4143,4343.8,4343.7,2.6832]
[1759999520587,0.1841,4344.3,4343.9,2.0369]
[1759999520782,0.41614182,4344.2,4344.1,2.0369]
[1759999520991,2.36104182,4344.2,4344.1,2.0369]
[1759999521196,7.90885335,4344.2,4344.1,3.392]
[1759999521385,0.41431,4343.7,4343.6,4.678]
[1759999521888,0.41431,4343.7,4343.6,5.09231]
[1759999522090,0.41431,4343.7,4343.6,5.32431]
[1759999522293,0.4143,4343.8,4343.7,3.0554]
[1759999522493,0.4143,4343.8,4343.7,5.0923]
[1759999523089,0.00188182,4344.2,4344.0,2.8339]
[1759999523387,0.00188182,4344.2,4344.1,5.32427]
[1759999524186,0.41614182,4344.2,4344.1,4.91]
[1759999524594,1.70544182,4344.2,4344.1,4.678]
[1759999524795,4.96594182,4344.2,4344.1,4.91]
[1759999525092,8.00688701,4344.2,4344.1,1.3551]
[1759999525393,8.00688701,4344.2,4344.1,1.5871]
[1759999525987,8.00688701,4344.2,4344.1,3.624]
[1759999526491,8.00688701,4344.2,4344.1,4.678]
[1759999526694,1.70544182,4344.2,4344.1,4.91]
[1759999526891,4.96594182,4344.2,4344.1,4.91]
[1759999527293,4.96594182,4344.2,4344.1,4.678]
[1759999527492,1.70544182,4344.2,4344.1,4.91]
[1759999527786,0.41431,4343.6,4343.5,3.4381]
[1759999527994,0.41431,4343.6,4343.5,5.707]
[1759999528196,0.41429,4343.9,4343.5,6.12132]
[1759999528490,7.86312613,4344.0,4343.9,3.1047]
[1759999528996,7.86312613,4344.0,4343.9,3.3367]
[1759999529500,7.86312613,4344.0,4341.9,0.41447]
[1759999529501,1.03599,4342.8,4341.9,0.41447]
[1759999529691,0.41445,4342.2,4341.5,0.7883]
[1759999529997,0.41445,4342.2,4342.1,0.232]
[1759999530297,0.41445,4342.2,4342.1,2.0929]
[1759999531191,0.41444,4342.3,4342.2,1.8609]
[1759999531496,2.28114,4342.3,4342.2,0.232]
[1759999531694,2.28114,4342.3,4342.2,2.0929]
[1759999532095,2.28114,4342.3,4342.2,1.8609]
[1759999532292,2.28114,4342.3,4342.2,2.0929]
[1759999533689,0.41444,4342.3,4342.2,2.0929]
[1759999536005,0.59862,4342.5,4342.3,0.41443]
[1759999536295,4.98932,4342.5,4342.4,4.6503]
[1759999536797,0.41442,4342.5,4342.4,4.6503]
[1759999537003,3.56415,4343.2,4343.1,4.4183]
[1759999537302,0.41435,4343.2,4343.1,4.6503]
[1759999537494,0.41435,4343.3,4343.2,1.8609]
[1759999537803,0.41435,4343.3,4343.2,4.4183]
[1759999538494,3.01078092,4343.5,4343.2,4.4183]
[1759999538690,4.70820092,4343.5,4343.4,4.4183]
[1759999539191,0.00188182,4344.2,4344.1,3.1047]
[1759999539395,3.15168182,4344.2,4344.1,4.4183]
[1759999539596,6.5687423,4344.2,4344.1,4.4183]
[1759999540294,1.69924182,4344.2,4344.1,4.4183]
[1759999540500,0.00188182,4344.2,4344.1,1.8609]
[1759999540898,0.00188182,4344.2,4344.1,6.8609]
[1759999541494,1.8667,4346.8,4344.7,1.8609]
[1759999541698,1.8667,4346.9,4345.6,1.8609]
[1759999541897,1.8667,4345.6,4345.5,1.8609]
[1759999542098,1.8667,4345.6,4345.5,2.0929]
[1759999542401,1.86951538,4345.6,4345.5,2.0955078]
[1759999543605,1.86951538,4345.6,4345.5,1.8635078]
[1759999543800,1.86951538,4345.6,4345.5,0.2346078]
[1759999544398,1.86951538,4345.6,4345.5,2.2453078]
[1759999544998,1.86951538,4345.6,4345.5,2.0133078]
[1759999545201,1.86951538,4345.6,4345.5,0.2346078]
[1759999545496,0.00281538,4345.6,4345.5,2.9783078]
[1759999546296,1.82121538,4345.6,4345.5,2.0133078]
[1759999546496,9.7957751,4345.6,4345.5,0.0026078]
[1759999546907,9.7957751,4345.6,4344.0,0.7883]
[1759999546908,0.41426,4344.2,4344.0,0.7883]
[1759999547099,0.41426,4344.2,4344.1,2.0587]
[1759999547303,0.41426,4344.2,4344.1,2.2427]
[1759999547701,2.23266,4344.2,4344.1,2.2427]
[1759999548007,5.23381107,4344.2,4344.1,0.00287772]
[1759999550806,4.81955107,4344.2,4344.1,0.00287772]
[1759999551907,2.07062,4345.7,4344.1,0.00287772]
[1759999551908,1.8184,4344.7,4344.2,0.41426]
[1759999552203,0.41423,4344.5,4344.4,2.0107]
[1759999552401,2.23263,4344.5,4344.4,2.2427]
[1759999552601,5.18462493,4344.5,4344.4,2.2427]
[1759999552804,5.18462493,4344.5,4344.4,2.0107]
[1759999553409,3.36622493,4344.5,4344.4,2.0107]
[1759999554002,2.95199493,4344.5,4344.4,2.0107]
[1759999554409,0.41424,4344.5,4344.4,2.0107]
[1759999555611,2.23264,4344.5,4344.4,2.0107]
[1759999555913,2.85384,4345.1,4344.4,0.232]
[1759999556108,0.41417,4345.2,4345.1,2.0107]
[1759999556308,0.00281538,4345.6,4345.1,0.64617]
[1759999556508,3.0338176,4345.4,4345.3,2.0107]
[1759999556810,0.00281538,4345.6,4345.5,0.733]
[1759999557115,0.00281538,4345.6,4345.5,2.9757]
[1759999557317,1.8184,4346.9,4346.2,2.0107]
[1759999557510,1.8184,4346.9,4346.3,0.232]
[1759999557807,0.41404,4346.5,4346.4,2.0107]
[1759999558518,0.4170275,4346.5,4346.4,2.0107]
[1759999558710,0.0029875,4346.5,4346.4,2.0107]
[1759999559203,1.8796,4347.0,4346.4,2.2427]
[1759999559404,0.41401,4346.9,4346.7,1.8112]
[1759999559607,0.41401,4346.9,4346.8,1.8112]
[1759999559808,1.8796,4347.4,4346.9,1.8112]
[1759999560022,0.7922,4347.5,4346.8,0.232]
[1759999560023,0.41398,4347.2,4347.1,1.8112]
[1759999560212,0.00226393,4347.2,4347.1,2.0432]
[1759999560408,1.8796,4346.7,4346.6,1.8112]
[1759999560613,1.8796,4346.7,4346.6,2.0432]
[1759999560813,1.8796,4346.7,4346.6,0.232]
[1759999561012,1.8796,4346.7,4345.3,1.8112]
[1759999561013,1.8796,4346.1,4345.3,1.8112]
[1759999561308,0.41419,4345.0,4344.9,1.8112]
[1759999561514,0.41419,4345.0,4344.9,2.0432]
[1759999561708,1.8796,4345.3,4345.0,1.8112]
[1759999562013,0.41418,4345.1,4345.0,1.8112]
[1759999562914,1.8796,4345.3,4345.0,1.8112]
[1759999563120,0.7749,4346.0,4345.0,1.8112]
[1759999563121,0.41417,4345.2,4345.1,1.8112]
[1759999563619,0.41415,4345.4,4345.0,1.14968]
[1759999563818,0.41416,4345.3,4345.0,1.14968]
[1759999564025,3.0549972,4345.6,4345.1,1.8112]
[1759999564328,3.4691272,4345.6,4345.1,1.8112]
[1759999564531,0.41416,4345.3,4345.0,1.14968]
[1759999564731,0.41417,4345.2,4345.1,1.8112]
[1759999564928,0.41417,4345.2,4344.5,0.7355]
[1759999564929,0.41422,4344.7,4344.5,0.7355]
[1759999565231,0.41422,4344.7,4344.6,0.232]
[1759999565431,0.41422,4344.7,4344.6,2.0432]
[1759999565630,0.41422,4344.7,4344.1,0.00287772]
[1759999565631,1.8796,4344.2,4344.1,0.00287772]
[1759999565824,1.8796,4343.7,4342.7,2.0432]
[1759999566133,0.41434,4343.4,4343.0,1.8112]
[1759999566336,0.41436,4343.2,4343.1,1.8112]